[Event "Titled Tuesday Blitz June 8 2021"]
[White "Korobov, Anton"]
[Black "Bachmann, Axel"]
[WhiteFideId "14105730"]
[BlackFideId "3700488"]
[WhiteElo "2668"]
[BlackElo "2642"]
[Result "0-1"]
[Round "04"]
[TimeControl "180+1"]
[Date "2021.06.08"]
[WhiteClock "0:00:19"]
[BlackClock "0:00:21"]

1. d4 {[%clk 0:03:00]}  Nf6 {[%clk 0:02:58]} 2. c4 {[%clk 0:03:00]}  e6 {[%clk 0:02:58]} 3. Nf3 {[%clk 0:03:00]}  Bb4+ {[%clk 0:02:57]} 4. Nbd2 {[%clk 0:03:00]}  O-O {[%clk 0:02:56]} 5. a3 {[%clk 0:03:00]}  Be7 {[%clk 0:02:56]} 6. b4 {[%clk 0:03:00]}  a5 {[%clk 0:02:52]} 7. b5 {[%clk 0:03:00]}  c5 {[%clk 0:02:51]} 8. bxc6 {[%clk 0:02:59]}  bxc6 {[%clk 0:02:46]} 9. e4 {[%clk 0:02:59]}  d5 {[%clk 0:02:44]} 10. e5 {[%clk 0:02:58]}  Nfd7 {[%clk 0:02:43]} 11. Bd3 {[%clk 0:02:56]}  Ba6 {[%clk 0:02:41]} 12. h4 {[%clk 0:02:56]}  h6 {[%clk 0:02:35]} 13. Qe2 {[%clk 0:02:22]}  c5 {[%clk 0:02:31]} 14. cxd5 {[%clk 0:02:21]}  Bxd3 {[%clk 0:02:30]} 15. Qxd3 {[%clk 0:02:21]}  exd5 {[%clk 0:02:28]} 16. O-O {[%clk 0:02:15]}  Nc6 {[%clk 0:02:27]} 17. Re1 {[%clk 0:02:08]}  cxd4 {[%clk 0:02:22]} 18. Qb5 {[%clk 0:01:56]}  Rc8 {[%clk 0:02:07]} 19. Qxd5 {[%clk 0:01:47]}  Nc5 {[%clk 0:02:06]} 20. Qc4 {[%clk 0:01:37]}  Qd7 {[%clk 0:01:45]} 21. Rb1 {[%clk 0:01:29]}  Rfd8 {[%clk 0:01:35]} 22. Rb6 {[%clk 0:01:11]}  d3 {[%clk 0:01:25]} 23. Bb2 {[%clk 0:01:06]}  Ne6 {[%clk 0:01:13]} 24. Qe4 {[%clk 0:00:48]}  Bc5 {[%clk 0:00:57]} 25. Rb5 {[%clk 0:00:48]}  Ncd4 {[%clk 0:00:51]} 26. Nxd4 {[%clk 0:00:48]}  Bxd4 {[%clk 0:00:52]} 27. a4 {[%clk 0:00:46]}  Rc2 {[%clk 0:00:35]} 28. Rb7 {[%clk 0:00:42]}  Qxa4 {[%clk 0:00:26]} 29. Qf5 {[%clk 0:00:24]}  Rxd2 {[%clk 0:00:26]} 30. Qxf7+ {[%clk 0:00:24]}  Kh8 {[%clk 0:00:26]} 31. Qxe6 {[%clk 0:00:19]}  Bxf2+ {[%clk 0:00:25]} 32. Kf1 {[%clk 0:00:19]}  Bxe1 {[%clk 0:00:22]} 33. Qe7 {[%clk 0:00:19]}  Qf4+ {[%clk 0:00:21]} 0-1


[Site "https://www.chess.com"]

[Event "Titled Tuesday Blitz June 8 2021"]
[White "Krivonosov, Oleg"]
[Black "Tabatabaei, M. Amin"]
[WhiteFideId "11600349"]
[BlackFideId "12521213"]
[WhiteElo "2469"]
[BlackElo "2555"]
[Result "0-1"]
[Round "04"]
[TimeControl "180+1"]
[Date "2021.06.08"]
[WhiteClock "0:00:19"]
[BlackClock "0:00:13"]

1. Nf3 {[%clk 0:03:00]}  f5 {[%clk 0:02:58]} 2. g3 {[%clk 0:03:00]}  Nf6 {[%clk 0:02:53]} 3. Bg2 {[%clk 0:02:59]}  g6 {[%clk 0:02:54]} 4. b3 {[%clk 0:02:58]}  d6 {[%clk 0:02:53]} 5. d4 {[%clk 0:02:57]}  Bg7 {[%clk 0:02:53]} 6. Bb2 {[%clk 0:02:57]}  O-O {[%clk 0:02:53]} 7. O-O {[%clk 0:02:56]}  c6 {[%clk 0:02:49]} 8. c4 {[%clk 0:02:54]}  Nbd7 {[%clk 0:02:46]} 9. d5 {[%clk 0:02:48]}  Nc5 {[%clk 0:02:42]} 10. Nc3 {[%clk 0:02:46]}  e5 {[%clk 0:02:38]} 11. dxe6 {[%clk 0:02:45]}  Bxe6 {[%clk 0:02:38]} 12. Ng5 {[%clk 0:02:42]}  Bc8 {[%clk 0:02:37]} 13. Qc2 {[%clk 0:02:37]}  h6 {[%clk 0:02:37]} 14. Nf3 {[%clk 0:02:35]}  a5 {[%clk 0:02:38]} 15. Rad1 {[%clk 0:02:33]}  Qc7 {[%clk 0:02:38]} 16. Qd2 {[%clk 0:02:25]}  Nce4 {[%clk 0:02:09]} 17. Nxe4 {[%clk 0:02:24]}  fxe4 {[%clk 0:02:09]} 18. Ne1 {[%clk 0:02:16]}  a4 {[%clk 0:02:07]} 19. Bxf6 {[%clk 0:02:00]}  Rxf6 {[%clk 0:01:56]} 20. Bxe4 {[%clk 0:01:59]}  axb3 {[%clk 0:01:56]} 21. axb3 {[%clk 0:01:58]}  Qb6 {[%clk 0:01:57]} 22. Qc2 {[%clk 0:01:52]}  Bh3 {[%clk 0:01:51]} 23. Bg2 {[%clk 0:01:48]}  Bf5 {[%clk 0:01:50]} 24. Be4 {[%clk 0:01:28]}  Bxe4 {[%clk 0:01:19]} 25. Qxe4 {[%clk 0:01:27]}  Qxb3 {[%clk 0:01:08]} 26. Nf3 {[%clk 0:01:25]}  Qb6 {[%clk 0:01:03]} 27. Qe7 {[%clk 0:01:16]}  Qc5 {[%clk 0:00:35]} 28. Qxb7 {[%clk 0:01:00]}  Re8 {[%clk 0:00:35]} 29. Rd2 {[%clk 0:00:39]}  g5 {[%clk 0:00:34]} 30. Nd4 {[%clk 0:00:34]}  Ref8 {[%clk 0:00:13]} 31. Qxc6 {[%clk 0:00:29]}  Rxf2 {[%clk 0:00:12]} 32. Rxf2 {[%clk 0:00:19]}  Bxd4 {[%clk 0:00:13]} 0-1


[Site "https://www.chess.com"]

[Event "Titled Tuesday Blitz June 8 2021"]
[White "Kuzubov, Yuriy"]
[Black "Bologan, Victor"]
[WhiteFideId "14112906"]
[BlackFideId "13900048"]
[WhiteElo "2564"]
[BlackElo "2511"]
[Result "0-1"]
[Round "04"]
[TimeControl "180+1"]
[Date "2021.06.08"]
[WhiteClock "0:00:32"]
[BlackClock "0:00:47"]

1. d4 {[%clk 0:03:00]}  d5 {[%clk 0:02:59]} 2. c4 {[%clk 0:03:00]}  c6 {[%clk 0:02:58]} 3. e3 {[%clk 0:02:57]}  Nf6 {[%clk 0:02:57]} 4. Nc3 {[%clk 0:02:57]}  a6 {[%clk 0:02:57]} 5. b3 {[%clk 0:02:55]}  Bf5 {[%clk 0:02:49]} 6. Nge2 {[%clk 0:02:55]}  e6 {[%clk 0:02:48]} 7. Ng3 {[%clk 0:02:54]}  Bg6 {[%clk 0:02:48]} 8. Bb2 {[%clk 0:02:52]}  Bd6 {[%clk 0:02:46]} 9. Bd3 {[%clk 0:02:51]}  b5 {[%clk 0:02:40]} 10. c5 {[%clk 0:02:41]}  Bc7 {[%clk 0:02:40]} 11. Nce2 {[%clk 0:02:40]}  Nbd7 {[%clk 0:02:36]} 12. f4 {[%clk 0:02:37]}  Bxd3 {[%clk 0:02:28]} 13. Qxd3 {[%clk 0:02:38]}  h5 {[%clk 0:02:28]} 14. h4 {[%clk 0:02:15]}  g6 {[%clk 0:02:24]} 15. Ng1 {[%clk 0:02:12]}  Ng4 {[%clk 0:02:17]} 16. Nf3 {[%clk 0:02:07]}  Ndf6 {[%clk 0:02:15]} 17. Ng5 {[%clk 0:02:02]}  Qc8 {[%clk 0:02:01]} 18. Rf1 {[%clk 0:01:57]}  O-O {[%clk 0:01:59]} 19. O-O-O {[%clk 0:01:54]}  b4 {[%clk 0:01:55]} 20. Kb1 {[%clk 0:01:32]}  a5 {[%clk 0:01:54]} 21. e4 {[%clk 0:01:23]}  dxe4 {[%clk 0:01:47]} 22. N3xe4 {[%clk 0:01:22]}  Nd5 {[%clk 0:01:44]} 23. Rc1 {[%clk 0:01:15]}  a4 {[%clk 0:01:43]} 24. bxa4 {[%clk 0:01:06]}  Rxa4 {[%clk 0:01:41]} 25. Nd6 {[%clk 0:01:06]}  Bxd6 {[%clk 0:01:36]} 26. cxd6 {[%clk 0:01:07]}  Qa8 {[%clk 0:01:27]} 27. Nxe6 {[%clk 0:01:05]}  Nc3+ {[%clk 0:01:11]} 28. Bxc3 {[%clk 0:00:56]}  bxc3 {[%clk 0:01:11]} 29. Nxf8 {[%clk 0:00:48]}  Qb7+ {[%clk 0:01:06]} 30. Kc2 {[%clk 0:00:47]}  Rxa2+ {[%clk 0:01:00]} 31. Kd1 {[%clk 0:00:37]}  Rd2+ {[%clk 0:00:56]} 32. Qxd2 {[%clk 0:00:36]}  cxd2 {[%clk 0:00:56]} 33. Kxd2 {[%clk 0:00:34]}  Kxf8 {[%clk 0:00:52]} 34. d5 {[%clk 0:00:33]}  Qb4+ {[%clk 0:00:51]} 35. Ke2 {[%clk 0:00:32]}  Qe4+ {[%clk 0:00:47]} 0-1


[Site "https://www.chess.com"]

[Event "Titled Tuesday Blitz June 8 2021"]
[White "Lazavik, Denis"]
[Black "Klekowski, Maciej"]
[WhiteFideId "13515110"]
[BlackFideId "1132717"]
[WhiteElo "2436"]
[BlackElo "2454"]
[Result "1-0"]
[Round "04"]
[TimeControl "180+1"]
[Date "2021.06.08"]
[WhiteClock "0:00:08"]
[BlackClock "0:00:59"]

1. d4 {[%clk 0:03:00]}  Nf6 {[%clk 0:02:59]} 2. c4 {[%clk 0:03:00]}  e6 {[%clk 0:02:59]} 3. Nf3 {[%clk 0:02:59]}  b6 {[%clk 0:02:59]} 4. g3 {[%clk 0:02:58]}  Ba6 {[%clk 0:02:59]} 5. b3 {[%clk 0:02:58]}  Bb4+ {[%clk 0:02:59]} 6. Bd2 {[%clk 0:02:58]}  Be7 {[%clk 0:02:59]} 7. Bg2 {[%clk 0:02:58]}  c6 {[%clk 0:02:59]} 8. Bc3 {[%clk 0:02:57]}  d5 {[%clk 0:03:00]} 9. Nbd2 {[%clk 0:02:58]}  Nbd7 {[%clk 0:03:00]} 10. O-O {[%clk 0:02:58]}  Rc8 {[%clk 0:03:00]} 11. Re1 {[%clk 0:02:50]}  c5 {[%clk 0:02:59]} 12. e4 {[%clk 0:02:29]}  dxe4 {[%clk 0:02:49]} 13. Nxe4 {[%clk 0:02:27]}  Nxe4 {[%clk 0:02:50]} 14. Rxe4 {[%clk 0:02:28]}  Nf6 {[%clk 0:02:49]} 15. Re2 {[%clk 0:02:14]}  O-O {[%clk 0:02:48]} 16. Ne5 {[%clk 0:01:56]}  Qc7 {[%clk 0:02:46]} 17. dxc5 {[%clk 0:01:50]}  bxc5 {[%clk 0:02:38]} 18. Qd2 {[%clk 0:01:38]}  Rfd8 {[%clk 0:02:33]} 19. Qe1 {[%clk 0:01:09]}  Rd6 {[%clk 0:02:32]} 20. b4 {[%clk 0:01:01]}  cxb4 {[%clk 0:02:14]} 21. Bxb4 {[%clk 0:01:00]}  Rd4 {[%clk 0:02:15]} 22. Bxe7 {[%clk 0:00:26]}  Qxe7 {[%clk 0:02:10]} 23. Nc6 {[%clk 0:00:23]}  Rxc6 {[%clk 0:02:11]} 24. Bxc6 {[%clk 0:00:23]}  Rxc4 {[%clk 0:02:11]} 25. Bg2 {[%clk 0:00:21]}  h5 {[%clk 0:02:12]} 26. Rd2 {[%clk 0:00:18]}  Bb7 {[%clk 0:02:06]} 27. Rc1 {[%clk 0:00:18]}  Rxc1 {[%clk 0:02:03]} 28. Qxc1 {[%clk 0:00:19]}  Bxg2 {[%clk 0:02:04]} 29. Kxg2 {[%clk 0:00:20]}  Qb7+ {[%clk 0:02:03]} 30. Kg1 {[%clk 0:00:16]}  Nd5 {[%clk 0:02:03]} 31. h4 {[%clk 0:00:15]}  g6 {[%clk 0:02:03]} 32. Rc2 {[%clk 0:00:15]}  Kg7 {[%clk 0:01:55]} 33. Qa1+ {[%clk 0:00:15]}  Kh7 {[%clk 0:01:50]} 34. Qb2 {[%clk 0:00:15]}  Qa6 {[%clk 0:01:49]} 35. Qe5 {[%clk 0:00:12]}  Qb7 {[%clk 0:01:40]} 36. Rb2 {[%clk 0:00:12]}  Qc6 {[%clk 0:01:38]} 37. Rb8 {[%clk 0:00:12]}  f6 {[%clk 0:01:36]} 38. Qb2 {[%clk 0:00:11]}  Kh6 {[%clk 0:01:07]} 39. Qb7 {[%clk 0:00:08]}  Qc1+ {[%clk 0:01:02]} 40. Kh2 {[%clk 0:00:08]}  Nc7 {[%clk 0:01:00]} 41. Rh8+ {[%clk 0:00:07]}  Kg7 {[%clk 0:00:59]} 42. Rc8 {[%clk 0:00:08]} 1-0


[Site "https://www.chess.com"]

[Event "Titled Tuesday Blitz June 8 2021"]
[White "Nemeth Junior, Henrique"]
[Black "Drygalov, Sergey"]
[WhiteFideId "2118815"]
[BlackFideId "24171743"]
[WhiteElo "1976"]
[BlackElo "2514"]
[Result "0-1"]
[Round "04"]
[TimeControl "180+1"]
[Date "2021.06.08"]
[WhiteClock "0:00:19"]
[BlackClock "0:00:07"]

1. e4 {[%clk 0:03:00]}  c5 {[%clk 0:03:00]} 2. Nf3 {[%clk 0:02:59]}  d6 {[%clk 0:03:00]} 3. d4 {[%clk 0:02:59]}  cxd4 {[%clk 0:03:01]} 4. Nxd4 {[%clk 0:03:00]}  Nf6 {[%clk 0:03:01]} 5. Nc3 {[%clk 0:03:01]}  a6 {[%clk 0:03:02]} 6. h3 {[%clk 0:02:59]}  e5 {[%clk 0:03:02]} 7. Nde2 {[%clk 0:02:59]}  h5 {[%clk 0:03:02]} 8. g3 {[%clk 0:02:59]}  Be6 {[%clk 0:03:01]} 9. Bg2 {[%clk 0:02:59]}  Nbd7 {[%clk 0:02:55]} 10. Nd5 {[%clk 0:02:58]}  Nxd5 {[%clk 0:02:54]} 11. exd5 {[%clk 0:02:58]}  Bf5 {[%clk 0:02:54]} 12. c4 {[%clk 0:02:55]}  Be7 {[%clk 0:02:52]} 13. O-O {[%clk 0:02:50]}  O-O {[%clk 0:02:52]} 14. b3 {[%clk 0:02:48]}  b5 {[%clk 0:02:48]} 15. f4 {[%clk 0:02:37]}  exf4 {[%clk 0:02:35]} 16. Nxf4 {[%clk 0:02:37]}  Bf6 {[%clk 0:02:10]} 17. Ba3 {[%clk 0:02:15]}  Bxa1 {[%clk 0:01:52]} 18. Qxa1 {[%clk 0:02:15]}  bxc4 {[%clk 0:01:46]} 19. Bxd6 {[%clk 0:02:12]}  Qb6+ {[%clk 0:01:41]} 20. Kh1 {[%clk 0:02:06]}  Qxd6 {[%clk 0:01:41]} 21. Nxh5 {[%clk 0:02:05]}  Qe5 {[%clk 0:01:34]} 22. Qxe5 {[%clk 0:02:03]}  Nxe5 {[%clk 0:01:35]} 23. Rxf5 {[%clk 0:02:03]}  f6 {[%clk 0:01:24]} 24. bxc4 {[%clk 0:01:49]}  Nxc4 {[%clk 0:01:22]} 25. d6 {[%clk 0:01:47]}  Nxd6 {[%clk 0:01:17]} 26. Bd5+ {[%clk 0:01:38]}  Kh7 {[%clk 0:01:11]} 27. Rf4 {[%clk 0:01:38]}  Rac8 {[%clk 0:00:45]} 28. Rh4 {[%clk 0:01:31]}  g5 {[%clk 0:00:33]} 29. Ra4 {[%clk 0:01:06]}  Kg6 {[%clk 0:00:33]} 30. g4 {[%clk 0:01:05]}  Rc5 {[%clk 0:00:28]} 31. Bb3 {[%clk 0:01:01]}  a5 {[%clk 0:00:23]} 32. Rd4 {[%clk 0:00:58]}  Nb5 {[%clk 0:00:21]} 33. Rd7 {[%clk 0:00:58]}  Rc7 {[%clk 0:00:16]} 34. Rd5 {[%clk 0:00:53]}  Nc3 {[%clk 0:00:16]} 35. Rxa5 {[%clk 0:00:51]}  Ne4 {[%clk 0:00:11]} 36. Be6 {[%clk 0:00:45]}  Re8 {[%clk 0:00:08]} 37. Bf5+ {[%clk 0:00:42]}  Kf7 {[%clk 0:00:08]} 38. Ra6 {[%clk 0:00:40]}  Rc1+ {[%clk 0:00:08]} 39. Kg2 {[%clk 0:00:40]}  Rc2+ {[%clk 0:00:08]} 40. Kg1 {[%clk 0:00:38]}  Rc1+ {[%clk 0:00:08]} 41. Kg2 {[%clk 0:00:38]}  Rc2+ {[%clk 0:00:09]} 42. Kg1 {[%clk 0:00:35]}  Rb2 {[%clk 0:00:09]} 43. Bxe4 {[%clk 0:00:28]}  Rxe4 {[%clk 0:00:09]} 44. Rxf6+ {[%clk 0:00:28]}  Ke7 {[%clk 0:00:09]} 45. Rf2 {[%clk 0:00:26]}  Ree2 {[%clk 0:00:07]} 46. Rxe2+ {[%clk 0:00:22]}  Rxe2 {[%clk 0:00:08]} 47. a4 {[%clk 0:00:22]}  Ra2 {[%clk 0:00:08]} 48. a5 {[%clk 0:00:21]}  Rxa5 {[%clk 0:00:08]} 49. Kg2 {[%clk 0:00:22]}  Ra3 {[%clk 0:00:08]} 50. Ng3 {[%clk 0:00:21]}  Kf6 {[%clk 0:00:06]} 51. Ne4+ {[%clk 0:00:21]}  Kg6 {[%clk 0:00:06]} 52. Nd2 {[%clk 0:00:20]}  Ra2 {[%clk 0:00:05]} 53. Kg3 {[%clk 0:00:18]}  Rxd2 {[%clk 0:00:05]} 54. h4 {[%clk 0:00:19]}  Rd3+ {[%clk 0:00:06]} 55. Kg2 {[%clk 0:00:19]}  gxh4 {[%clk 0:00:07]} 0-1


[Site "https://www.chess.com"]

[Event "Titled Tuesday Blitz June 8 2021"]
[White "Rychkov, Oleg"]
[Black "Kamsky, Gata"]
[WhiteFideId "4122852"]
[BlackFideId "2000024"]
[WhiteElo "2493"]
[BlackElo "2644"]
[Result "0-1"]
[Round "04"]
[TimeControl "180+1"]
[Date "2021.06.08"]
[WhiteClock "0:01:28"]
[BlackClock "0:01:42"]

1. d4 {[%clk 0:03:00]}  Nf6 {[%clk 0:02:58]} 2. c4 {[%clk 0:03:00]}  e6 {[%clk 0:02:58]} 3. Nf3 {[%clk 0:02:59]}  b6 {[%clk 0:02:56]} 4. Nc3 {[%clk 0:02:59]}  Bb4 {[%clk 0:02:55]} 5. Bd2 {[%clk 0:02:57]}  Bb7 {[%clk 0:02:55]} 6. e3 {[%clk 0:02:57]}  O-O {[%clk 0:02:53]} 7. Bd3 {[%clk 0:02:56]}  c5 {[%clk 0:02:53]} 8. a3 {[%clk 0:02:50]}  Bxc3 {[%clk 0:02:50]} 9. Bxc3 {[%clk 0:02:50]}  cxd4 {[%clk 0:02:37]} 10. Bxd4 {[%clk 0:02:50]}  d6 {[%clk 0:02:36]} 11. O-O {[%clk 0:02:48]}  e5 {[%clk 0:02:35]} 12. Nxe5 {[%clk 0:02:46]}  dxe5 {[%clk 0:02:34]} 13. Bxe5 {[%clk 0:02:47]}  Nbd7 {[%clk 0:02:33]} 14. Bd6 {[%clk 0:02:44]}  Re8 {[%clk 0:02:30]} 15. b4 {[%clk 0:02:44]}  Ne5 {[%clk 0:02:20]} 16. Be2 {[%clk 0:02:18]}  Ne4 {[%clk 0:02:18]} 17. Bxe5 {[%clk 0:02:10]}  Rxe5 {[%clk 0:02:17]} 18. Qc2 {[%clk 0:02:09]}  Nd2 {[%clk 0:02:05]} 19. Rfd1 {[%clk 0:01:56]}  Qg5 {[%clk 0:02:05]} 20. g3 {[%clk 0:01:56]}  Nf3+ {[%clk 0:02:04]} 21. Bxf3 {[%clk 0:01:52]}  Bxf3 {[%clk 0:02:04]} 22. Rd4 {[%clk 0:01:53]}  Rae8 {[%clk 0:01:59]} 23. Rf4 {[%clk 0:01:48]}  Be4 {[%clk 0:01:58]} 24. Qd2 {[%clk 0:01:46]}  Qe7 {[%clk 0:01:56]} 25. Rd1 {[%clk 0:01:45]}  g5 {[%clk 0:01:55]} 26. Rg4 {[%clk 0:01:38]}  h5 {[%clk 0:01:51]} 27. f4 {[%clk 0:01:38]}  hxg4 {[%clk 0:01:45]} 28. fxe5 {[%clk 0:01:38]}  Bf3 {[%clk 0:01:44]} 29. Re1 {[%clk 0:01:35]}  Qxe5 {[%clk 0:01:45]} 30. Kf2 {[%clk 0:01:29]}  Qf5 {[%clk 0:01:44]} 31. Kg1 {[%clk 0:01:28]}  Bc6 {[%clk 0:01:42]} 0-1


[Site "https://www.chess.com"]

[Event "Titled Tuesday Blitz June 8 2021"]
[White "Samsonkin, Artiom"]
[Black "Vignesh, N R"]
[WhiteFideId "13503111"]
[BlackFideId "25012215"]
[WhiteElo "2513"]
[BlackElo "2401"]
[Result "1-0"]
[Round "04"]
[TimeControl "180+1"]
[Date "2021.06.08"]
[WhiteClock "0:00:14"]
[BlackClock "0:00:02"]

1. e4 {[%clk 0:03:00]}  e5 {[%clk 0:02:56]} 2. Nf3 {[%clk 0:03:00]}  Nc6 {[%clk 0:02:56]} 3. d4 {[%clk 0:03:01]}  exd4 {[%clk 0:02:56]} 4. Bc4 {[%clk 0:03:02]}  Nf6 {[%clk 0:02:54]} 5. e5 {[%clk 0:03:02]}  d5 {[%clk 0:02:54]} 6. Bb5 {[%clk 0:03:01]}  Ne4 {[%clk 0:02:53]} 7. Nxd4 {[%clk 0:03:02]}  Bd7 {[%clk 0:02:48]} 8. Bxc6 {[%clk 0:03:01]}  bxc6 {[%clk 0:02:47]} 9. O-O {[%clk 0:03:02]}  Be7 {[%clk 0:02:44]} 10. f3 {[%clk 0:03:02]}  Nc5 {[%clk 0:02:39]} 11. f4 {[%clk 0:02:59]}  Ne4 {[%clk 0:02:31]} 12. Nc3 {[%clk 0:02:52]}  Nxc3 {[%clk 0:02:19]} 13. bxc3 {[%clk 0:02:53]}  c5 {[%clk 0:02:14]} 14. Ne2 {[%clk 0:02:47]}  O-O {[%clk 0:01:36]} 15. f5 {[%clk 0:02:28]}  c6 {[%clk 0:00:58]} 16. Ng3 {[%clk 0:01:41]}  Re8 {[%clk 0:00:57]} 17. Qg4 {[%clk 0:01:18]}  Bf8 {[%clk 0:00:52]} 18. e6 {[%clk 0:01:14]}  fxe6 {[%clk 0:00:48]} 19. f6 {[%clk 0:01:14]}  Kh8 {[%clk 0:00:30]} 20. Nh5 {[%clk 0:01:07]}  gxf6 {[%clk 0:00:16]} 21. Nxf6 {[%clk 0:01:07]}  Bg7 {[%clk 0:00:16]} 22. Bg5 {[%clk 0:00:57]}  Re7 {[%clk 0:00:14]} 23. Nxh7 {[%clk 0:00:40]}  Kxh7 {[%clk 0:00:13]} 24. Qh4+ {[%clk 0:00:41]}  Kg8 {[%clk 0:00:14]} 25. Bxe7 {[%clk 0:00:41]}  Qe8 {[%clk 0:00:13]} 26. Rf3 {[%clk 0:00:40]}  e5 {[%clk 0:00:09]} 27. Rg3 {[%clk 0:00:34]}  Bf5 {[%clk 0:00:05]} 28. Rf1 {[%clk 0:00:21]}  Bg6 {[%clk 0:00:04]} 29. Rf8+ {[%clk 0:00:20]}  Bxf8 {[%clk 0:00:03]} 30. Bxf8 {[%clk 0:00:21]}  Kxf8 {[%clk 0:00:02]} 31. Qf6+ {[%clk 0:00:14]} 1-0


[Site "https://www.chess.com"]

[Event "Titled Tuesday Blitz June 8 2021"]
[White "Siva Mahadevan"]
[Black "Nenezic, Marko"]
[WhiteFideId "25043153"]
[BlackFideId "912123"]
[WhiteElo "2203"]
[BlackElo "2438"]
[Result "0-1"]
[Round "04"]
[TimeControl "180+1"]
[Date "2021.06.08"]
[WhiteClock "0:00:08"]
[BlackClock "0:00:14"]

1. e4 {[%clk 0:03:00]}  c5 {[%clk 0:02:59]} 2. Nf3 {[%clk 0:03:00]}  d6 {[%clk 0:03:00]} 3. d4 {[%clk 0:03:01]}  cxd4 {[%clk 0:03:01]} 4. Nxd4 {[%clk 0:03:01]}  Nf6 {[%clk 0:03:02]} 5. Nc3 {[%clk 0:03:02]}  a6 {[%clk 0:03:02]} 6. Bg5 {[%clk 0:03:02]}  e6 {[%clk 0:03:03]} 7. f4 {[%clk 0:03:03]}  Qc7 {[%clk 0:03:03]} 8. Qe2 {[%clk 0:03:03]}  Nbd7 {[%clk 0:03:01]} 9. O-O-O {[%clk 0:03:03]}  Be7 {[%clk 0:02:57]} 10. g4 {[%clk 0:03:03]}  b5 {[%clk 0:02:58]} 11. a3 {[%clk 0:03:02]}  Rb8 {[%clk 0:02:58]} 12. Bg2 {[%clk 0:03:02]}  Bb7 {[%clk 0:02:45]} 13. Rhe1 {[%clk 0:03:00]}  O-O {[%clk 0:02:41]} 14. Kb1 {[%clk 0:02:44]}  Ba8 {[%clk 0:02:41]} 15. e5 {[%clk 0:02:40]}  Bxg2 {[%clk 0:02:18]} 16. exf6 {[%clk 0:02:18]}  gxf6 {[%clk 0:02:18]} 17. Qxg2 {[%clk 0:02:18]}  fxg5 {[%clk 0:02:18]} 18. Nc6 {[%clk 0:01:51]}  Nb6 {[%clk 0:02:10]} 19. Nxb8 {[%clk 0:01:48]}  Rxb8 {[%clk 0:02:11]} 20. f5 {[%clk 0:01:43]}  Na4 {[%clk 0:01:35]} 21. fxe6 {[%clk 0:00:44]}  Nxc3+ {[%clk 0:01:29]} 22. bxc3 {[%clk 0:00:43]}  Bf6 {[%clk 0:01:01]} 23. exf7+ {[%clk 0:00:40]}  Kxf7 {[%clk 0:01:01]} 24. Qd5+ {[%clk 0:00:31]}  Kg7 {[%clk 0:01:01]} 25. Rd3 {[%clk 0:00:32]}  Be5 {[%clk 0:00:58]} 26. Rf3 {[%clk 0:00:27]}  a5 {[%clk 0:00:52]} 27. Ref1 {[%clk 0:00:27]}  Bf4 {[%clk 0:00:52]} 28. h4 {[%clk 0:00:23]}  b4 {[%clk 0:00:49]} 29. axb4 {[%clk 0:00:23]}  axb4 {[%clk 0:00:50]} 30. c4 {[%clk 0:00:24]}  Qa7 {[%clk 0:00:39]} 31. Rxf4 {[%clk 0:00:11]}  gxf4 {[%clk 0:00:39]} 32. Qg5+ {[%clk 0:00:10]}  Kh8 {[%clk 0:00:36]} 33. Qf6+ {[%clk 0:00:10]}  Qg7 {[%clk 0:00:34]} 34. Rxf4 {[%clk 0:00:06]}  b3 {[%clk 0:00:31]} 35. cxb3 {[%clk 0:00:05]}  Rxb3+ {[%clk 0:00:31]} 36. Kc2 {[%clk 0:00:06]}  Ra3 {[%clk 0:00:25]} 37. Qxg7+ {[%clk 0:00:03]}  Kxg7 {[%clk 0:00:25]} 38. Rd4 {[%clk 0:00:04]}  Rg3 {[%clk 0:00:22]} 39. g5 {[%clk 0:00:04]}  Rh3 {[%clk 0:00:19]} 40. Kd2 {[%clk 0:00:03]}  Kf7 {[%clk 0:00:19]} 41. Ke2 {[%clk 0:00:04]}  Ke7 {[%clk 0:00:19]} 42. Kf2 {[%clk 0:00:05]}  Ke6 {[%clk 0:00:18]} 43. Kg2 {[%clk 0:00:05]}  Rc3 {[%clk 0:00:18]} 44. Rf4 {[%clk 0:00:04]}  Rc1 {[%clk 0:00:14]} 45. Rf6+ {[%clk 0:00:04]}  Ke7 {[%clk 0:00:14]} 46. Rh6 {[%clk 0:00:04]}  Rxc4 {[%clk 0:00:15]} 47. Rxh7+ {[%clk 0:00:04]}  Ke6 {[%clk 0:00:15]} 48. Rh6+ {[%clk 0:00:05]}  Ke5 {[%clk 0:00:15]} 49. Rf6 {[%clk 0:00:05]}  d5 {[%clk 0:00:15]} 50. Kg3 {[%clk 0:00:06]}  d4 {[%clk 0:00:15]} 51. Rf1 {[%clk 0:00:06]}  d3 {[%clk 0:00:16]} 52. h5 {[%clk 0:00:07]}  Ke4 {[%clk 0:00:14]} 53. Rf4+ {[%clk 0:00:06]}  Ke3 {[%clk 0:00:13]} 54. Rf8 {[%clk 0:00:07]}  d2 {[%clk 0:00:13]} 55. Re8+ {[%clk 0:00:07]}  Re4 {[%clk 0:00:13]} 56. Rd8 {[%clk 0:00:08]}  Rd4 {[%clk 0:00:14]} 57. Re8+ {[%clk 0:00:08]}  Kd3 {[%clk 0:00:14]} 0-1


[Site "https://www.chess.com"]

[Event "Titled Tuesday Blitz June 8 2021"]
[White "Suarez Gomez, Julio"]
[Black "Sarana, Alexey"]
[WhiteFideId "22275991"]
[BlackFideId "24133795"]
[WhiteElo "2376"]
[BlackElo "2629"]
[Result "1-0"]
[Round "04"]
[TimeControl "180+1"]
[Date "2021.06.08"]
[WhiteClock "0:00:20"]
[BlackClock "0:00:01"]

1. d4 {[%clk 0:02:59]}  Nf6 {[%clk 0:02:58]} 2. Nf3 {[%clk 0:02:59]}  d5 {[%clk 0:02:58]} 3. c4 {[%clk 0:02:56]}  e6 {[%clk 0:02:57]} 4. e3 {[%clk 0:02:53]}  Bd6 {[%clk 0:02:55]} 5. Nc3 {[%clk 0:02:49]}  O-O {[%clk 0:02:54]} 6. b3 {[%clk 0:02:46]}  b6 {[%clk 0:02:51]} 7. Bb2 {[%clk 0:02:45]}  Bb7 {[%clk 0:02:51]} 8. cxd5 {[%clk 0:02:44]}  exd5 {[%clk 0:02:51]} 9. g3 {[%clk 0:02:40]}  Nbd7 {[%clk 0:02:47]} 10. Bg2 {[%clk 0:02:40]}  Ba6 {[%clk 0:02:47]} 11. Bf1 {[%clk 0:02:39]}  Bxf1 {[%clk 0:02:45]} 12. Kxf1 {[%clk 0:02:40]}  c6 {[%clk 0:02:45]} 13. Kg2 {[%clk 0:02:40]}  Re8 {[%clk 0:02:45]} 14. Rc1 {[%clk 0:02:37]}  Rc8 {[%clk 0:02:45]} 15. Re1 {[%clk 0:02:35]}  Qe7 {[%clk 0:02:37]} 16. Ne2 {[%clk 0:02:17]}  Ne4 {[%clk 0:02:34]} 17. Nf4 {[%clk 0:02:17]}  Ndf6 {[%clk 0:02:01]} 18. Nd3 {[%clk 0:02:12]}  Ng4 {[%clk 0:02:00]} 19. Nfe5 {[%clk 0:01:55]}  Nxe5 {[%clk 0:01:29]} 20. dxe5 {[%clk 0:01:53]}  Bb8 {[%clk 0:01:29]} 21. f3 {[%clk 0:01:50]}  Ng5 {[%clk 0:01:29]} 22. h4 {[%clk 0:01:43]}  Ne6 {[%clk 0:01:29]} 23. f4 {[%clk 0:01:43]}  g6 {[%clk 0:01:23]} 24. Nf2 {[%clk 0:01:41]}  h5 {[%clk 0:01:10]} 25. g4 {[%clk 0:01:27]}  Ng7 {[%clk 0:01:09]} 26. e4 {[%clk 0:01:18]}  Rcd8 {[%clk 0:01:04]} 27. Qf3 {[%clk 0:00:55]}  Qxh4 {[%clk 0:00:34]} 28. Rh1 {[%clk 0:00:47]}  Qe7 {[%clk 0:00:34]} 29. exd5 {[%clk 0:00:44]}  cxd5 {[%clk 0:00:28]} 30. gxh5 {[%clk 0:00:41]}  Qe6 {[%clk 0:00:28]} 31. Ng4 {[%clk 0:00:34]}  Nxh5 {[%clk 0:00:13]} 32. Rxh5 {[%clk 0:00:34]}  gxh5 {[%clk 0:00:13]} 33. Nf6+ {[%clk 0:00:34]}  Kg7 {[%clk 0:00:12]} 34. f5 {[%clk 0:00:26]}  Qe7 {[%clk 0:00:09]} 35. Nxh5+ {[%clk 0:00:24]}  Kh6 {[%clk 0:00:04]} 36. f6 {[%clk 0:00:23]}  Qe6 {[%clk 0:00:02]} 37. Rh1 {[%clk 0:00:23]}  Rh8 {[%clk 0:00:02]} 38. Nf4+ {[%clk 0:00:20]}  Kg5 {[%clk 0:00:01]} 39. Nxe6+ {[%clk 0:00:20]} 1-0


[Site "https://www.chess.com"]